bitfinex/quotes_BTCUSD_20250422
["timestamp","ask_amount","ask_price","bid_price","bid_amount"]
[1745329399453,0.14896,90037.0,90034.0,0.01110691]
[1745329399667,0.0476,90060.0,90034.0,0.11375594]
[1745329399668,0.14896,90036.0,90034.0,0.11375594]
[1745329399896,0.14896,90035.0,90030.0,0.00046094]
[1745329400103,0.14896,90034.0,90030.0,0.00046094]
[1745329400522,0.0964,90031.0,90030.0,0.00046094]
[1745329400829,0.0964,90031.0,90011.0,0.02]
[1745329400830,0.01110814,90024.0,90011.0,0.0198444]
[1745329401025,0.01110802,90025.0,90011.0,0.02030554]
[1745329401253,0.01110802,90025.0,89994.0,0.01111185]
[1745329401254,0.01110802,90025.0,90000.0,0.00222192]
[1745329401500,0.22215267,90029.0,89993.0,0.0008444]
[1745329401501,0.01110901,90017.0,89993.0,0.0008444]
[1745329401742,0.366,90016.0,90000.0,0.00046145]
[1745329401974,0.366,90016.0,90014.0,0.22218593]
[1745329401975,0.14896,90015.0,90014.0,0.22218593]
[1745329402198,0.14896,90015.0,90014.0,0.45375594]
[1745329402425,0.0964,90031.0,90020.0,0.22217135]
[1745329402656,0.14896,90030.0,90021.0,0.34]
[1745329402910,0.14896,90030.0,90017.0,0.22218025]
[1745329403126,0.14896,90030.0,90018.0,0.34]
[1745329403341,0.0476,90031.0,90025.0,0.34]
[1745329403342,0.14896,90029.0,90025.0,0.34]
[1745329403551,0.14896,90029.0,90028.0,0.5621531]
[1745329403552,0.149,90029.0,90028.0,0.5621531]
[1745329403752,0.149,90029.0,90028.0,0.34]
[1745329404195,0.366,90036.0,90028.0,0.34]
[1745329404656,0.149,90035.0,90030.0,0.34]
[1745329404907,0.149,90035.0,90030.0,0.34046145]
[1745329405326,0.149,90034.0,90030.0,0.34046145]
[1745329405596,0.366,90036.0,90032.0,0.22213821]
[1745329405823,0.0488,90057.0,90034.0,0.34]
[1745329406054,0.149,90039.0,90038.0,0.34]
[1745329406280,0.149,90039.0,90038.0,0.45375594]
[1745329406517,0.149,90039.0,90038.0,0.34]
[1745329406969,0.142,90039.0,90033.0,0.34]
[1745329407501,0.142,90039.0,90035.0,0.34]
[1745329408517,0.142,90039.0,90027.0,0.34]
[1745329409542,0.142,90039.0,90021.0,0.34]
[1745329409962,0.142,90039.0,90030.0,0.34046145]
[1745329410170,0.142,90039.0,90032.0,0.34]
[1745329410945,0.142,90039.0,90032.0,0.35095547]
[1745329413137,0.143,90039.0,90032.0,0.01095547]
[1745329413505,0.01110679,90035.0,90030.0,0.00046145]
[1745329413632,0.01110703,90033.0,90030.0,0.00046145]
[1745329413870,0.11375594,90032.0,90030.0,0.00046145]
[1745329414048,0.33589999,90032.0,90030.0,0.00046145]
[1745329414256,0.0476,90031.0,90030.0,0.00046145]
[1745329414485,0.16135594,90031.0,90030.0,0.00046145]
[1745329414691,0.38350164,90031.0,90030.0,0.00046145]
[1745329415497,0.22216544,90023.0,90022.0,0.01504719]
[1745329415800,0.22216544,90023.0,90022.0,0.01550867]
[1745329415801,0.33592138,90023.0,90022.0,0.01550867]
[1745329416649,0.33592138,90023.0,90022.0,0.02659416]
[1745329416861,0.35046223,90023.0,90022.0,0.02659416]
[1745329417316,0.39926223,90023.0,90022.0,0.02659416]
[1745329417581,0.39926223,90023.0,90022.0,0.01154697]
[1745329417782,0.39926223,90023.0,90003.0,0.01206877]
[1745329417783,0.01110851,90021.0,90003.0,0.01206877]
[1745329417980,0.14416,90020.0,90003.0,0.01253134]
[1745329418180,0.11375594,90019.0,90003.0,0.00130937]
[1745329418402,0.11375594,90019.0,90003.0,0.01257803]
[1745329418519,0.11375594,90019.0,90003.0,0.00130937]
[1745329419128,0.0488,90023.0,90003.0,0.00130937]
[1745329419129,0.1442,90018.0,90017.0,0.56218025]
[1745329419307,0.001,90040.0,90033.0,0.56213835]
[1745329419308,0.1442,90034.0,90033.0,0.56213835]
[1745329419516,0.14026801,90034.0,90033.0,0.34]
[1745329419742,0.14026801,90034.0,90033.0,0.7567]
[1745329419743,0.13526801,90034.0,90033.0,0.7567]
[1745329419894,0.32708012,90045.0,90039.0,0.34]
[1745329420094,0.32708012,90045.0,90044.0,0.56211363]
[1745329420510,0.1442,90057.0,90046.0,0.34]
[1745329421279,0.1442,90056.0,90046.0,0.34]
[1745329421481,0.1382,90056.0,90044.0,0.34]
[1745329421756,0.1382,90056.0,90041.0,0.34]
[1745329421907,0.1382,90056.0,90040.0,0.47912274]
[1745329421908,0.1382,90056.0,90054.0,0.56208669]
[1745329422110,0.1382,90056.0,90054.0,0.34]
[1745329422994,0.1382,90056.0,90046.0,4e-05]
[1745329423193,0.1382,90056.0,90046.0,0.34004]
[1745329424255,0.1382,90056.0,90054.0,4e-05]
[1745329425056,0.1552637,90060.0,90054.0,4e-05]
[1745329425255,0.14416,90060.0,90054.0,4e-05]
[1745329426262,0.0476,90065.0,90054.0,4e-05]
[1745329426462,0.25791594,90064.0,90054.0,4e-05]
[1745329426643,0.11375594,90064.0,90054.0,4e-05]
[1745329426848,0.14416,90063.0,90054.0,4e-05]
[1745329427370,0.01110407,90057.0,90054.0,4e-05]
[1745329427589,0.0111037,90060.0,90054.0,4e-05]
[1745329427590,0.25791594,90056.0,90054.0,4e-05]
[1745329428138,0.01640546,90069.0,90058.0,0.34]
[1745329428331,0.01640546,90069.0,90054.0,0.34004]
[1745329428502,0.01640546,90069.0,90054.0,0.35114444]
[1745329428707,0.01640546,90069.0,90055.0,0.01110432]
[1745329428969,0.01640546,90069.0,90060.0,0.0111037]
[1745329429170,0.00470547,90069.0,90068.0,0.34]
[1745329429358,0.01806446,90071.0,90068.0,0.34]
[1745329429922,0.01806446,90071.0,90066.0,0.34]
[1745329430141,0.01806446,90071.0,90068.0,0.34]
[1745329430365,0.01806446,90071.0,90068.0,0.34046257]
[1745329431094,0.01806446,90071.0,90068.0,0.56251575]
[1745329431622,0.01806446,90071.0,90068.0,0.34046257]
[1745329431803,0.01806446,90071.0,90069.0,0.2220513]
[1745329432019,0.01806446,90071.0,90069.0,0.34]
[1745329432239,0.01806446,90071.0,90069.0,0.56205084]
[1745329432377,0.01806446,90071.0,90069.0,0.34]
[1745329433160,0.01806446,90071.0,90068.0,0.00046257]
[1745329434220,0.14412,90077.0,90071.0,0.08577354]
[1745329434594,0.001,90080.0,90071.0,0.08577354]
[1745329434595,0.14412,90078.0,90071.0,0.08577354]
[1745329434801,0.26897755,90077.0,90071.0,0.08577354]
[1745329435005,0.25787594,90077.0,90071.0,0.08577354]
[1745329435212,0.22204102,90074.0,90071.0,0.08577354]
[1745329435454,0.25787594,90077.0,90071.0,0.08577354]
[1745329435666,0.047,90072.0,90071.0,0.08577354]
[1745329435877,0.17529679,90072.0,90071.0,0.08577354]
[1745329436539,0.17529679,90072.0,90071.0,0.09945077]
[1745329436963,0.16075594,90072.0,90071.0,0.09945077]
[1745329437170,0.15375594,90072.0,90071.0,0.09945077]
[1745329437794,0.29307594,90072.0,90071.0,0.09945077]
[1745329438423,0.04,90072.0,90071.0,0.09945077]
[1745329438630,0.001,90077.0,90071.0,0.09945077]
[1745329439264,0.01110198,90074.0,90071.0,0.09945077]
[1745329439413,0.01210161,90077.0,90071.0,0.09945077]
[1745329439414,0.11375594,90073.0,90071.0,0.09945077]
[1745329439620,0.001,90077.0,90071.0,0.09945077]
[1745329440379,0.08486,90078.0,90071.0,0.09945077]
[1745329441776,0.0004,90079.0,90071.0,0.09945077]
[1745329442651,0.0004,90079.0,90071.0,0.09675077]
[1745329443877,0.0004,90079.0,90071.0,0.31879535]
[1745329444100,0.0004,90079.0,90072.0,0.22204458]
[1745329444307,0.0004,90079.0,90071.0,0.09675077]
[1745329444528,0.0004,90079.0,90077.0,0.34]
[1745329444765,0.02920707,90083.0,90082.0,0.22201993]
[1745329444915,0.02920707,90083.0,90082.0,0.56201993]
[1745329447827,0.02580865,90083.0,90082.0,0.56201993]
[1745329448297,0.02580865,90083.0,90082.0,0.34]
[1745329448496,0.02580865,90083.0,90071.0,0.09679077]
[1745329448980,0.02580865,90083.0,90071.0,0.31883758]
[1745329449207,0.02580865,90083.0,90071.0,0.43679077]
[1745329449563,0.02580865,90083.0,90082.0,4e-05]
[1745329450553,0.13956459,90083.0,90082.0,4e-05]
[1745329451745,0.02580865,90083.0,90082.0,4e-05]
[1745329452537,0.01880865,90083.0,90082.0,4e-05]
[1745329452963,0.13256459,90083.0,90082.0,4e-05]
[1745329456046,0.01880865,90083.0,90082.0,0.00204]
[1745329458727,0.0004234,90092.0,90082.0,0.00204]
[1745329458728,0.22197342,90101.0,90082.0,0.00204]
[1745329459020,0.11375594,90100.0,90082.0,0.00204]
[1745329460115,0.0110984,90103.0,90082.0,0.00204]
[1745329460231,0.0110989,90099.0,90082.0,0.00204]
[1745329460432,0.33982512,90102.0,90082.0,0.00204]
[1745329460633,0.01454085,90100.0,90082.0,0.00204]
[1745329460832,0.12485484,90099.0,90082.0,0.00204]
[1745329461036,0.01109902,90098.0,90082.0,0.00204]
[1745329461265,0.11375594,90097.0,90082.0,0.00204]
[1745329464381,0.11375594,90097.0,90082.0,0.00208]
[1745329464584,0.2219932,90093.0,90082.0,0.00208]
[1745329464882,0.01110001,90090.0,90082.0,0.00208]
[1745329465084,0.11375594,90089.0,90082.0,0.00208]
[1745329466194,0.01110062,90085.0,90082.0,0.00208]
[1745329466367,0.11375594,90085.0,90082.0,0.00208]
[1745329466919,0.01109914,90097.0,90082.0,0.00208]
[1745329467131,0.13456,90093.0,90082.0,0.00208]
[1745329467337,0.11375594,90092.0,90082.0,0.00208]
[1745329467747,0.1248557,90092.0,90082.0,0.00208]
[1745329467922,0.11375594,90092.0,90082.0,0.00208]
[1745329468153,0.13456,90093.0,90082.0,0.00208]
[1745329468409,0.24831594,90093.0,90082.0,0.00208]
[1745329468610,0.23309531,90092.0,90082.0,0.00208]
[1745329468820,0.01110025,90088.0,90071.0,0.01371723]
[1745329469025,0.11375594,90087.0,90071.0,0.01371723]
[1745329470650,0.02564135,90086.0,90071.0,0.01371723]
[1745329470854,0.01110173,90076.0,90071.0,0.01371723]
[1745329471060,0.11375594,90075.0,90071.0,0.01371723]
[1745329471266,0.11375594,90075.0,90060.0,0.31901439]
[1745329471435,0.11421731,90075.0,90060.0,0.31901439]
[1745329471617,0.11421731,90075.0,90061.0,0.34]
[1745329471821,0.00046137,90075.0,90071.0,4e-05]
[1745329474816,0.00046137,90075.0,90063.0,0.18451616]
[1745329475617,0.01110124,90080.0,90063.0,0.18451616]
[1745329475838,0.01110124,90080.0,90070.0,0.31901439]
[1745329475839,0.34688463,90079.0,90070.0,0.31901439]
[1745329476193,0.23313495,90077.0,90063.0,0.00046137]
[1745329476373,0.01110198,90074.0,90063.0,0.00046137]
[1745329476575,0.11375594,90076.0,90063.0,0.00046137]
[1745329476780,0.01109902,90098.0,90066.0,0.31901439]
[1745329476943,0.24831594,90085.0,90074.0,0.31901439]
[1745329477163,0.25941656,90085.0,90074.0,0.31901439]
[1745329477360,0.12829679,90084.0,90074.0,0.31901439]
[1745329477737,0.13456,90085.0,90074.0,0.31901439]
[1745329477872,0.24831594,90085.0,90063.0,0.00046137]
[1745329478073,0.01110075,90084.0,90070.0,0.31901439]
[1745329478278,0.11375594,90085.0,90071.0,0.34]
[1745329478500,0.13456,90084.0,90071.0,0.34]
[1745329479665,0.13456,90084.0,90063.0,0.34046137]
[1745329479930,0.11375594,90083.0,90071.0,0.34]
[1745329480157,0.01110173,90076.0,90063.0,0.00031548]
[1745329480270,0.22203719,90075.0,90063.0,0.00031548]
[1745329480471,0.0111021,90073.0,90063.0,0.00031548]
[1745329480732,0.11375594,90073.0,90063.0,0.00031548]
[1745329480890,0.11375594,90073.0,90063.0,0.34031548]
[1745329481072,0.01110112,90081.0,90063.0,0.34031548]
[1745329481277,0.01110136,90079.0,90073.0,0.31901439]
[1745329481477,0.11375594,90079.0,90073.0,0.31901439]
[1745329481943,0.1248573,90079.0,90073.0,0.31901439]
[1745329482166,0.11375594,90079.0,90074.0,0.34]
[1745329482326,0.13456,90084.0,90074.0,0.34]
[1745329482536,0.11375594,90083.0,90074.0,0.34]
[1745329482819,0.13456,90084.0,90074.0,0.34]
[1745329483464,0.12756,90084.0,90074.0,0.34]
[1745329483818,0.23310657,90088.0,90074.0,0.34]
[1745329484014,0.01110025,90088.0,90079.0,0.34]
[1745329484223,0.01110038,90087.0,90079.0,0.34]
[1745329484554,0.11375594,90086.0,90079.0,0.34]
[1745329485384,0.11375594,90086.0,90071.0,0.34]
[1745329485696,0.23311818,90084.0,90077.0,0.34]
[1745329485901,0.01110112,90081.0,90077.0,0.34]
[1745329486108,0.11375594,90080.0,90077.0,0.34]
[1745329486250,0.2220276,90079.0,90077.0,0.34]
[1745329486467,0.01110161,90077.0,90070.0,0.34]
[1745329486669,0.11375594,90079.0,90070.0,0.34]
[1745329487077,0.12996,90083.0,90070.0,0.34]
[1745329487298,0.24371594,90083.0,90070.0,0.34]
[1745329487797,0.12996,90083.0,90070.0,0.34]
[1745329487993,0.14106087,90083.0,90070.0,0.34]
[1745329488209,0.12996,90083.0,90070.0,0.34]
[1745329489181,0.01454085,90096.0,90070.0,0.34]
[1745329489387,0.01454085,90094.0,90086.0,0.31901439]
[1745329489634,0.23309536,90092.0,90081.0,0.34]
[1745329489824,0.01110001,90090.0,90081.0,0.34]
[1745329490051,0.01110062,90085.0,90081.0,0.34]
[1745329490255,0.12485607,90089.0,90081.0,0.34]
[1745329490589,0.11375594,90089.0,90081.0,0.34]
[1745329491733,0.01109976,90092.0,90081.0,0.34]
[1745329491932,0.12485582,90091.0,90081.0,0.34]
[1745329492233,0.11375594,90091.0,90081.0,0.34]
[1745329492710,0.12221613,90091.0,90081.0,0.34]
[1745329493012,0.22201386,90085.0,90081.0,0.34004]
[1745329493155,0.01110062,90085.0,90081.0,4e-05]
[1745329493398,0.23310763,90088.0,90081.0,4e-05]
[1745329493599,0.01110025,90088.0,90081.0,4e-05]
[1745329493806,0.22200969,90087.0,90081.0,4e-05]
[1745329494114,0.23311543,90085.0,90081.0,4e-05]
[1745329494302,0.11375594,90084.0,90081.0,4e-05]
[1745329494508,0.24371594,90084.0,90081.0,4e-05]
[1745329497166,0.22201993,90082.0,90081.0,4e-05]
[1745329497370,0.11375594,90082.0,90081.0,4e-05]
[1745329497574,0.12996,90084.0,90081.0,4e-05]
[1745329498795,0.12996,90085.0,90081.0,4e-05]
[1745329499493,0.12296,90085.0,90081.0,4e-05]
[1745329500368,0.001,90090.0,90081.0,4e-05]
[1745329500575,0.001,90090.0,90087.0,0.01110038]
[1745329500803,0.001,90090.0,90088.0,0.56200407]
[1745329501037,0.001,90090.0,90088.0,0.34]
[1745329501257,0.001,90090.0,90089.0,0.33675862]
[1745329501470,0.001,90090.0,90089.0,0.0497]
[1745329502103,0.001,90090.0,90088.0,0.001]
[1745329503680,0.31095927,90089.0,90088.0,0.001]
[1745329503908,0.001,90090.0,90088.0,0.2230046]
[1745329504253,0.0014232,90120.0,90099.0,0.34]
[1745329504367,0.01151893,90119.0,90101.0,0.34]
[1745329504568,0.0004225,90119.0,90101.0,0.34]
[1745329504840,0.12996,90116.0,90101.0,0.34]
[1745329505043,0.11375594,90109.0,90101.0,0.34]
[1745329505250,0.01109779,90108.0,90101.0,0.34]
[1745329505457,0.12485385,90107.0,90101.0,0.34]
[1745329505678,0.11375594,90107.0,90101.0,0.34]
[1745329505915,0.11375594,90107.0,90091.0,0.34]
[1745329505916,0.01109853,90102.0,90091.0,0.34]
[1745329506121,0.01109816,90105.0,90093.0,0.34]
[1745329506338,0.11375594,90104.0,90093.0,0.34]
[1745329506749,0.53946379,90139.0,90093.0,0.34]
[1745329506750,0.01109594,90123.0,90093.0,0.34]
[1745329506959,0.0004233,90115.0,90101.0,0.34]
[1745329507157,0.01454085,90118.0,90101.0,0.34]
[1745329507392,0.01454085,90116.0,90101.0,0.34]
[1745329507542,0.11375594,90115.0,90101.0,0.34]
[1745329508757,0.00011774,90118.0,90101.0,0.34]
[1745329512303,0.00011774,90118.0,90101.0,0.56197215]
[1745329512491,0.00011774,90118.0,90101.0,0.34004]
[1745329513048,0.00011774,90118.0,90108.0,0.31901439]
[1745329513818,0.00011774,90118.0,90108.0,0.31888054]
[1745329514821,0.23314755,90118.0,90108.0,0.31888054]
[1745329515023,0.01109619,90121.0,90108.0,0.31888054]
[1745329515221,0.12485213,90121.0,90108.0,0.31901834]
[1745329515424,0.12485213,90121.0,90111.0,0.31901439]
[1745329515425,0.01109656,90118.0,90111.0,0.31901439]
[1745329515627,0.01109631,90120.0,90111.0,0.31901439]
[1745329516015,0.22193162,90118.0,90111.0,0.31901439]
[1745329516217,0.22194384,90113.0,90111.0,0.31901439]
[1745329516413,0.22194384,90113.0,90108.0,0.0001378]
[1745329516414,0.34680104,90112.0,90108.0,0.31915219]
[1745329516783,0.11375594,90112.0,90108.0,0.31915219]
[1745329516963,0.01454085,90109.0,90108.0,0.0001378]
[1745329517264,0.12829679,90109.0,90108.0,0.0001378]
[1745329518257,0.25585679,90109.0,90108.0,0.0001378]
[1745329519779,0.12756,90109.0,90108.0,0.0001378]
[1745329520005,0.08915659,90127.0,90108.0,0.0001378]
[1745329520006,0.0002,90127.0,90108.0,0.0001378]
[1745329520219,0.01109656,90118.0,90108.0,0.0011378]
[1745329520418,0.12756,90123.0,90108.0,0.32015219]
[1745329520622,0.11375594,90122.0,90108.0,0.32015219]
[1745329521035,0.24131594,90122.0,90108.0,0.32015219]
[1745329521253,0.11375594,90122.0,90108.0,0.32015219]
[1745329521425,0.0014233,90130.0,90114.0,0.0955]
[1745329521602,0.0014233,90130.0,90120.0,0.34]
[1745329521807,0.0014233,90130.0,90120.0,0.33740655]
[1745329522680,0.199574,90129.0,90120.0,0.33740655]
[1745329523052,0.199574,90129.0,90114.0,0.0955]
[1745329523378,0.11375594,90128.0,90119.0,0.31901439]
[1745329523981,0.11375594,90128.0,90120.0,0.34]
[1745329524390,0.0110957,90125.0,90118.0,0.31901439]
[1745329524593,0.199574,90129.0,90118.0,0.31901439]
[1745329524804,0.11375594,90128.0,90118.0,0.31901439]
[1745329525252,0.36197122,90110.0,90108.0,0.0011778]
[1745329526281,0.36197122,90110.0,90108.0,0.01879144]
[1745329526524,0.36197122,90110.0,90108.0,0.0011778]
[1745329527387,0.36197122,90110.0,90108.0,0.01874636]
[1745329527600,0.01149397,90139.0,90108.0,0.22313329]
[1745329527744,0.06597673,90129.0,90120.0,0.34]
[1745329529284,0.06597673,90129.0,90120.0,0.56192483]
[1745329529484,0.06597673,90129.0,90120.0,0.34]
[1745329529777,0.06597673,90129.0,90125.0,0.34]
[1745329530347,0.05897673,90129.0,90128.0,0.34]
[1745329530995,0.05897673,90129.0,90119.0,0.63802878]
[1745329531222,0.05897673,90129.0,90120.0,0.34]
[1745329531879,0.11375594,90128.0,90120.0,0.34]
[1745329532082,0.11375594,90128.0,90110.0,0.31901439]
[1745329532461,0.11375594,90128.0,90118.0,0.31901439]
[1745329532762,0.11375594,90128.0,90108.0,0.01738224]
[1745329532763,0.14210085,90127.0,90110.0,0.31901439]
[1745329532914,0.14210085,90127.0,90118.0,0.31901439]
[1745329532915,0.01454085,90125.0,90118.0,0.31901439]
[1745329533121,0.11375594,90124.0,90118.0,0.31901439]
[1745329533319,0.07375594,90124.0,90118.0,0.31901439]
[1745329533520,0.01454085,90123.0,90118.0,0.31901439]
[1745329533729,0.01454085,90123.0,90108.0,0.01738224]
[1745329533730,0.01454085,90111.0,90108.0,0.01738224]
[1745329533931,0.01454085,90109.0,90108.0,0.01738224]
[1745329534134,0.25085679,90109.0,90108.0,0.0001778]
[1745329534309,0.12756,90109.0,90108.0,0.0001778]
[1745329534695,0.12756,90109.0,90108.0,0.01782974]
[1745329534919,0.001,90124.0,90108.0,0.0001778]
[1745329535119,0.11375594,90123.0,90110.0,0.31901439]
[1745329535320,0.23302589,90119.0,90108.0,0.01752967]
[1745329535605,0.24131594,90118.0,90108.0,0.0001778]
[1745329535762,0.01109693,90115.0,90108.0,0.0001778]
[1745329535926,0.11375594,90114.0,90108.0,0.0001778]
[1745329536556,0.12756,90118.0,90108.0,0.0174707]
[1745329536811,0.001,90124.0,90109.0,0.34]
[1745329537103,0.001,90124.0,90108.0,0.31919219]
[1745329537104,0.001,90124.0,90115.0,0.34]
[1745329537439,0.001,90124.0,90114.0,0.31901439]
[1745329537657,0.001,90124.0,90110.0,0.31901439]
[1745329538104,0.12156,90128.0,90110.0,0.32001439]
[1745329538305,0.23531594,90128.0,90118.0,0.31901439]
[1745329538740,0.11375594,90128.0,90118.0,0.31901439]
[1745329538941,0.24131594,90128.0,90118.0,0.31901439]
[1745329539134,0.24131594,90128.0,90110.0,0.001]
[1745329539335,0.24131594,90128.0,90119.0,0.34]
[1745329539885,0.24131594,90128.0,90118.0,0.31901439]
[1745329540717,0.24131594,90128.0,90111.0,0.34]
[1745329540913,0.24131594,90128.0,90118.0,0.31901439]
[1745329541534,0.24131594,90128.0,90111.0,0.34]
[1745329541712,0.24131594,90128.0,90113.0,0.22194355]
[1745329541922,0.11375594,90128.0,90118.0,0.31901439]
[1745329542216,0.05897673,90129.0,90123.0,0.22191661]
[1745329542481,0.05897673,90129.0,90119.0,0.34]
[1745329542482,0.05897673,90129.0,90121.0,0.34]
[1745329542684,0.05897673,90129.0,90126.0,0.34]
[1745329543371,0.05897673,90129.0,90127.0,0.22190908]
[1745329544044,0.05897673,90129.0,90128.0,0.34]
[1745329545894,0.05197673,90129.0,90128.0,0.34]
[1745329546120,0.03682674,90129.0,90128.0,0.34]
[1745329546797,1e-08,90133.0,90132.0,0.56189677]
[1745329547393,0.00016078,90134.0,90133.0,0.34]
[1745329548178,1e-08,90134.0,90133.0,0.34]
[1745329548375,1e-08,90134.0,90133.0,0.3884]
[1745329549707,1e-08,90134.0,90133.0,0.3884]
[1745329550107,1e-08,90134.0,90133.0,0.38844]
[1745329550916,0.00036001,90139.0,90138.0,0.561882]
[1745329552123,0.00036001,90139.0,90138.0,0.5620198]
[1745329553410,0.00036001,90139.0,90138.0,0.5630198]
[1745329553870,0.02148263,90152.0,90143.0,0.34]
[1745329554116,0.02148263,90152.0,90145.0,0.34]
[1745329554316,0.02148263,90152.0,90151.0,0.34]
[1745329554654,0.02148263,90152.0,90151.0,0.56185]
[1745329555804,0.00590128,90164.0,90151.0,0.56185]
[1745329555805,1e-08,90161.0,90160.0,0.34]
[1745329556431,0.001,90170.0,90165.0,0.22181556]
[1745329556633,0.01976952,90172.0,90171.0,0.6125008]
[1745329556856,0.01976952,90172.0,90171.0,0.72625674]
[1745329557058,0.01976952,90172.0,90171.0,0.6125008]
[1745329557284,0.01976952,90172.0,90171.0,0.72625674]
[1745329557441,0.14568952,90172.0,90171.0,0.72625674]
[1745329557866,0.14568952,90172.0,90171.0,0.6125008]
[1745329558067,0.01976952,90172.0,90171.0,0.72639454]
[1745329558293,0.14568952,90172.0,90171.0,0.72639454]
[1745329558516,0.01976952,90172.0,90171.0,0.72639454]
[1745329558684,0.02037051,90198.0,90188.0,0.61245899]
[1745329558901,0.0473,90248.0,90208.0,0.001]
[1745329559101,0.01108143,90241.0,90230.0,0.31901439]
[1745329559336,0.01108192,90237.0,90207.0,0.34]
[1745329559563,0.01108327,90226.0,90220.0,0.31901439]
[1745329559763,0.13700156,90240.0,90216.0,0.31901439]
[1745329559964,0.01108168,90239.0,90226.0,0.31901439]
[1745329560197,0.01108241,90233.0,90211.0,0.34]
[1745329560437,0.00046167,90239.0,90223.0,0.31901439]
[1745329560638,0.01108217,90235.0,90229.0,0.31901439]
[1745329560853,0.12592,90234.0,90229.0,0.31901439]
[1745329561066,0.01108217,90235.0,90229.0,0.31901439]
[1745329561280,0.12592,90233.0,90216.0,4e-05]
[1745329561496,0.00046167,90239.0,90226.0,0.01706311]
[1745329561695,0.04469922,90263.0,90233.0,0.001]
[1745329561696,0.01246167,90252.0,90233.0,0.001]
[1745329561890,0.0110818,90238.0,90221.0,0.001]
[1745329562032,0.0110818,90238.0,90226.0,0.01696262]
[1745329562231,0.2327186,90238.0,90223.0,0.01772404]
[1745329562572,0.01108168,90239.0,90223.0,0.00046167]
[1745329562776,0.11375594,90239.0,90233.0,4e-05]
[1745329563178,0.11375594,90238.0,90233.0,4e-05]
[1745329563382,0.13096,90237.0,90233.0,4e-05]
[1745329563822,0.23618679,90234.0,90233.0,4e-05]
[1745329564003,0.34994273,90234.0,90233.0,4e-05]
[1745329564202,0.12829679,90234.0,90233.0,4e-05]
[1745329564840,0.2216705,90224.0,90223.0,0.00046167]
[1745329565042,0.01108807,90187.0,90176.0,0.001]
[1745329565256,0.01454085,90213.0,90172.0,0.0484]
[1745329565257,0.13096,90186.0,90172.0,0.0484]
[1745329565426,0.36556,90190.0,90177.0,0.10128203]
[1745329565628,0.01732543,90224.0,90176.0,0.01732648]
[1745329565629,0.13096,90189.0,90188.0,0.22175839]
[1745329565805,0.13096,90189.0,90186.0,0.01108819]
[1745329566022,0.13096,90189.0,90188.0,0.34]
[1745329566390,0.36556,90205.0,90188.0,0.335]
[1745329566518,0.13096,90189.0,90188.0,0.335]
[1745329567118,0.13096,90189.0,90185.0,0.22176518]
[1745329567367,0.13096,90189.0,90185.0,0.11375594]
[1745329567952,0.13096,90189.0,90185.0,0.33565843]
[1745329568154,0.13096,90188.0,90185.0,0.0001378]
[1745329568630,0.36456,90205.0,90185.0,0.11393374]
[1745329568831,0.13096,90204.0,90191.0,0.34]
[1745329569070,0.13096,90204.0,90191.0,0.56174944]
[1745329569267,0.01454085,90223.0,90191.0,0.35108758]
[1745329569519,0.49652,90222.0,90211.0,0.34]
[1745329569827,0.01108438,90217.0,90211.0,0.34]
[1745329570004,0.11375594,90217.0,90211.0,0.34]
[1745329570227,0.01108487,90213.0,90188.0,0.0491]
[1745329570596,0.12484032,90217.0,90185.0,0.0001778]
[1745329570597,0.11375594,90217.0,90191.0,0.34]
[1745329570829,0.01108426,90218.0,90191.0,0.34]
[1745329570830,0.01108512,90211.0,90191.0,0.34]
[1745329571054,0.13096,90210.0,90191.0,0.34]
[1745329571262,0.23276258,90221.0,90201.0,0.34]
[1745329571473,0.13096,90209.0,90201.0,0.34]
[1745329571675,0.11375594,90220.0,90201.0,0.34]
[1745329571881,0.36556,90222.0,90211.0,0.34]
[1745329572054,0.13096,90219.0,90211.0,0.34]
[1745329573075,0.13096,90219.0,90200.0,0.36741439]
[1745329573280,0.13096,90219.0,90201.0,0.34]
[1745329573488,0.36556,90222.0,90210.0,0.34]
[1745329573635,0.13096,90218.0,90203.0,0.34]
[1745329573846,0.13096,90217.0,90211.0,0.34]
[1745329574293,0.13096,90217.0,90211.0,0.34004]
[1745329574650,0.13096,90217.0,90211.0,4e-05]
[1745329574853,0.11375594,90216.0,90211.0,4e-05]
[1745329575036,0.36556,90222.0,90211.0,4e-05]
[1745329575268,0.13092,90221.0,90211.0,4e-05]
[1745329577011,0.12392,90221.0,90211.0,4e-05]
[1745329577608,0.22169857,90213.0,90211.0,4e-05]
[1745329577822,0.12829679,90212.0,90211.0,4e-05]
[1745329577995,0.12825679,90212.0,90211.0,4e-05]
[1745329578358,0.23629738,90189.0,90176.0,0.01691346]
[1745329578492,0.24467594,90189.0,90179.0,0.31901439]
[1745329578927,0.25921679,90189.0,90179.0,0.31901439]
[1745329579383,0.25921679,90189.0,90176.0,0.01691346]
[1745329579643,0.25921679,90189.0,90174.0,0.0008458]
[1745329579843,0.25921679,90189.0,90175.0,0.01621943]
[1745329580092,0.25921679,90189.0,90174.0,0.0008458]
[1745329580336,0.25921679,90189.0,90179.0,0.31901439]
[1745329580538,0.11375594,90189.0,90188.0,8e-05]
[1745329580744,0.13096,90189.0,90188.0,8e-05]
[1745329580965,0.11375594,90189.0,90188.0,8e-05]
[1745329581182,0.26557679,90189.0,90188.0,8e-05]
[1745329581418,0.36786934,90189.0,90188.0,8e-05]
[1745329581632,0.26557679,90189.0,90188.0,8e-05]
[1745329582396,0.25103594,90189.0,90188.0,8e-05]
[1745329582604,0.11375594,90189.0,90188.0,8e-05]
[1745329582860,0.25103594,90189.0,90188.0,8e-05]
[1745329583976,0.11375594,90189.0,90188.0,8e-05]
[1745329584198,0.25103594,90189.0,90188.0,8e-05]
[1745329584769,0.24403594,90189.0,90188.0,8e-05]
[1745329584943,0.10675594,90189.0,90188.0,8e-05]
[1745329585179,0.01108315,90227.0,90191.0,0.01108758]
[1745329585381,0.25103594,90226.0,90210.0,0.31901439]
[1745329585884,0.0110834,90225.0,90210.0,0.40195939]
[1745329586037,0.11375594,90224.0,90210.0,0.40195939]
[1745329586386,0.13728,90223.0,90210.0,0.40195939]